{"text_format":"1","workbook":"xlsx","n_sheets":19,"sheets":["SOMMAIRE","COORD","CATEGORIES","DEVIS","CLIENTS","Etudes","Sécurité","Démolition","Gros oeuvre - drainage","Terrassement","Charp - Couverture","Façade","Menuiseries","Isolation combles","Plâtrerie","Electricité","Sanitaire - Chauff","Revêtements","AUX"],"not_rendered":{"charts":0,"images":5,"macros":1,"external_links":0,"defined_names":1,"comments":0,"pivot_tables":0},"unopened":[],"bounds":{"document_bytes":16777216,"sheet_cells":100000,"rows_first":2000,"rows_last":500,"rows_between":2000,"halvings":0,"cell_chars":16384,"cell_head_chars":4096},"cells_cut":0,"cells_raw":0,"read":"whole","date_system":"1900"}

{"sheet":"SOMMAIRE","index":0,"n_rows":4,"n_cols":8,"rows_kept":4,"cut":false,"hidden":false,"merged":[]}
[]
[]
[]
[null,null,null,null,null,null,null,"Création et gestion des devis"]

{"sheet":"COORD","index":1,"n_rows":19,"n_cols":10,"rows_kept":19,"cut":false,"hidden":false,"merged":[[9,3,9,7],[18,3,23,7],[11,3,16,7],[7,1,7,7],[7,9,7,15]]}
[]
[]
[]
[null,null,null,null,null,"Saisie des coordonnées du client"]
[]
[]
[]
[null,"NOUVEAU CLIENT",null,null,null,null,null,null,null,"CLIENT EXISTANT"]
[]
[null,"Nom du client",null,"M et Mme TCHONG"]
[]
[null,"Adresse"]
[]
[]
[]
[]
[]
[]
[null,"Adresse du chantier"]

{"sheet":"CATEGORIES","index":2,"n_rows":26,"n_cols":13,"rows_kept":26,"cut":false,"hidden":false,"merged":[]}
[]
[]
[]
[null,null,null,null,null,"Type de travaux à réaliser"]
[]
[]
[]
[]
[]
[]
[]
[null,"Etudes",null,null,"Sécurité chantier",null,null,null,"Charpente / Couverture",null,null,null,"Plâtrerie"]
[]
[]
[]
[]
[null,null,null,null,"Démolition",null,null,null,"Façade ITE / Ravalement",null,null,null,"Electricité intérieure"]
[]
[]
[]
[null,null,null,null,"Gros-œuvre / Drainage",null,null,null,"Menuiseries extérieures",null,null,null,"Chauffage / Sanitaire"]
[]
[]
[]
[]
[null,null,null,null,"Reprise en sous-œuvre / Terrassement",null,null,null,"Isolation combles",null,null,null,"Revêtements sol et murs"]

{"sheet":"DEVIS","index":3,"n_rows":141,"n_cols":6,"rows_kept":141,"cut":false,"hidden":false,"merged":[[30,0,44,5],[4,1,5,5],[7,2,7,5],[19,2,19,4],[18,2,18,5],[8,2,8,5],[9,2,9,5],[10,2,10,5],[11,2,11,5],[13,2,13,5],[14,2,14,5],[15,2,15,5],[16,2,16,5],[17,2,17,5],[64,2,64,4],[65,2,65,3],[66,2,66,4],[109,2,109,5],[110,2,110,5],[111,2,111,5],[112,2,112,5],[113,2,113,5],[107,2,107,4],[124,0,124,5],[136,0,136,5],[137,0,137,5],[138,0,138,5],[139,0,139,5],[140,0,140,5]]}
[]
[]
[]
[]
[null,"          Devis"]
[]
[null,null,"Adresse Client"]
["1, place du Pont à Seille 57000 METZ",null,"M. Dupont"]
["info@coverbat.net",null,"rue de l'Eglise"]
["www.coverbat.net",null,"57935 LUTTANGE"]
["Contact administratif: 06 24 70 61 31"]
["Contact technique: 06 99 37 03 02"]
["SIRET 793 304 643 00018",null,"Adresse Chantier"]
["TVA Intracom FR26793304643",null,"Idem"]
["Code APE 4120B "]
["Assurance décennale et RCP auprès de RDCPro Powess ss n° 27829"]
["Capital social 15 000 euros"]
["IBAN FR76 3008 7333 0400 0203 0100 128"]
["BIC CMCIFRPP",null,"                                                                                                                      Devis n°"]
[null,null,"150609MD001",null,null,{"$f":"TODAY()","v":"2015-06-10"}]
[]
["Description des travaux à réaliser"]
["Rénovation et isolation de la toiture"]
[]
[]
[null,{"$f":"MATCH(SMALL('Charp - Couverture'!F:F,ROW()-50),'Charp - Couverture'!F:F,0)","v":{"$error":"#NUM!"}}]
[]
[]
["Madame, monsieur,"]
[]
["Nous vous remercions de nous avoir sollicités pour établir un devis estimatif concernant les travaux décrits ci-dessus.\n\nNous sommes une entreprise labellisée RGE ce qui vous ouvre droit aux aides de l’Etat pour les travaux de rénovation énergétique (les postes signalés en bleu sur notre devis).\nTous nos travaux sont couverts par une garantie décennale et une responsabilité civile professionnelle contractée auprès de Powess.\n\nNos devis sont gratuits mais ils nécessitent une somme importante de travail (relevés techniques, étude de plans, étude de faisabilité, appels d'offre auprès de nos fournisseurs, etc), nous vous remercions de nous donner un retour par e-mail ou par téléphone après analyse de notre devis.\n\nNous espérons recevoir la faveur de vos ordres pour ces travaux et vous prions d’agréer, madame, monsieur, l’expression de nos salutations distinguées.\n"]
[]
[]
[]
[]
[]
[]
[]
[]
[]
[]
[]
[]
[]
[]
[]
[]
[]
[]
["N°","DESCRIPTION DES TRAVAUX","Q","U","PU","TOTAL"]
[null,{"$f":"IFERROR(INDEX('Charp - Couverture'!B:B,MATCH(SMALL('Charp - Couverture'!G:G,ROW()-50),'Charp - Couverture'!G:G,0)),\"\")","v":"Dépose de l'ensemble de la couverture et évacuation en déchetterie"}]
[null,{"$f":"IFERROR(INDEX('Charp - Couverture'!B:B,MATCH(SMALL('Charp - Couverture'!G:G,ROW()-50),'Charp - Couverture'!G:G,0)),\"\")","v":"Dépose de cheminée y compris évacuation des gravats en déchetterie"}]
[null,{"$f":"IFERROR(INDEX('Charp - Couverture'!B:B,MATCH(SMALL('Charp - Couverture'!G:G,ROW()-50),'Charp - Couverture'!G:G,0)),\"\")","v":"Dépose de la zinguerie y compris évacuation"}]
[null,{"$f":"IFERROR(INDEX('Charp - Couverture'!B:B,MATCH(SMALL('Charp - Couverture'!G:G,ROW()-50),'Charp - Couverture'!G:G,0)),\"\")","v":"Fourniture et pose d'une charpente type fermette"}]
[null,{"$f":"IFERROR(INDEX('Charp - Couverture'!B:B,MATCH(SMALL('Charp - Couverture'!G:G,ROW()-50),'Charp - Couverture'!G:G,0)),\"\")","v":"Fourniture et pose de goutière zinc carrée prépatinées"}]
[null,{"$f":"IFERROR(INDEX('Charp - Couverture'!B:B,MATCH(SMALL('Charp - Couverture'!G:G,ROW()-50),'Charp - Couverture'!G:G,0)),\"\")","v":"Fourniture et pose descente d'eaux pluviales diam 100 mm"}]
[null,{"$f":"IFERROR(INDEX('Charp - Couverture'!B:B,MATCH(SMALL('Charp - Couverture'!G:G,ROW()-50),'Charp - Couverture'!G:G,0)),\"\")","v":"Fourniture et pose d'une planche d'égout"}]
[null,{"$f":"IFERROR(INDEX('Charp - Couverture'!B:B,MATCH(SMALL('Charp - Couverture'!G:G,ROW()-50),'Charp - Couverture'!G:G,0)),\"\")","v":""}]
[null,{"$f":"IFERROR(INDEX('Charp - Couverture'!B:B,MATCH(SMALL('Charp - Couverture'!G:G,ROW()-50),'Charp - Couverture'!G:G,0)),\"\")","v":""}]
[null,{"$f":"IFERROR(INDEX('Charp - Couverture'!B:B,MATCH(SMALL('Charp - Couverture'!G:G,ROW()-50),'Charp - Couverture'!G:G,0)),\"\")","v":""}]
[null,{"$f":"IFERROR(INDEX('Charp - Couverture'!B:B,MATCH(SMALL('Charp - Couverture'!G:G,ROW()-50),'Charp - Couverture'!G:G,0)),\"\")","v":""}]
[null,{"$f":"IFERROR(INDEX('Charp - Couverture'!B:B,MATCH(SMALL('Charp - Couverture'!G:G,ROW()-50),'Charp - Couverture'!G:G,0)),\"\")","v":""}]
[null,{"$f":"IFERROR(INDEX('Charp - Couverture'!B:B,MATCH(SMALL('Charp - Couverture'!G:G,ROW()-50),'Charp - Couverture'!G:G,0)),\"\")","v":""}]
[null,{"$f":"IFERROR(INDEX('Charp - Couverture'!B:B,MATCH(SMALL('Charp - Couverture'!G:G,ROW()-50),'Charp - Couverture'!G:G,0)),\"\")","v":""}]
[null,null,"TOTAL HT",null,null,{"$f":"SUM(F51:F64)","v":0}]
[null,null,"TVA",null,0.1,{"$f":"F65*0.1","v":0}]
[null,null,"TOTAL TTC",null,null,{"$f":"F65+F66","v":0}]
[]
[]
[]
[]
[]
[]
[]
[]
[]
[]
[]
[]
[]
[]
[]
[]
[]
[]
[]
[]
[]
[]
[]
[]
[]
[]
[]
[]
[]
[]
[]
[]
[]
[]
[]
[]
[]
[]
[]
[]
[null,"                                                                                                                      Devis n°",{"$f":"C20","v":"150609MD001"},null,null,{"$f":"TODAY()","v":"2015-06-10"}]
[]
[null,"Adressé à",{"$f":"C8","v":"M. Dupont"}]
[null,null,{"$f":"C9","v":"rue de l'Eglise"}]
[null,null,{"$f":"C10","v":"57935 LUTTANGE"}]
[]
[]
[]
[]
[]
["Conditions de règlement"]
[0.1,"à la signature"]
[0.3,"au démarrage"]
[0.5,"à situation"]
[0.1,"à la réception"]
[]
[]
["OFFRE VALABLE 3 MOIS à compter de la date d'émission"]
[]
[]
["BON POUR ACCORD D'EXECUTION DES TRAVAUX "]
["date:"]
["nom et signature:"]
[]
[]
[]
[]
[]
[]
["CONDITIONS GENERALES"]
["La présente offre de prix comprend les fournitures, la main d'œuvre, la mise à pied d'œuvre des matériaux, les charges sociales, les assurances professionnelles et les frais de déplacement."]
["Les travaux supplémentaires  seront facturés après accord d'exécution et prix à convenir avec le propriétaire."]
["Nos prix sont établis sur la base des taux de TVA en vigueur à la date de remise de l'offre. Toute variation ultérieure de ces taux, imposée par la loi, sera répercutée sur ces prix."]
["L'entreprise se réserve le droit d'invoquer la clause de réserve de propriété."]

{"sheet":"CLIENTS","index":4,"n_rows":9,"n_cols":7,"rows_kept":9,"cut":false,"hidden":false,"merged":[]}
[]
[]
[]
[null,null,"Registre des clients"]
[]
[]
[]
[]
["Numéro","Nom","Adresse","Adresse Chantier","Date création","Devis associés","Etat"]

{"sheet":"Etudes","index":5,"n_rows":0,"n_cols":0,"rows_kept":0,"cut":false,"hidden":false,"merged":[]}

{"sheet":"Sécurité","index":6,"n_rows":6,"n_cols":3,"rows_kept":6,"cut":false,"hidden":false,"merged":[]}
[]
[]
[]
[]
[null,null,"SECURITE"]
[null,null,"Mise en place d'un échafaudage de sécurité"]

{"sheet":"Démolition","index":7,"n_rows":0,"n_cols":0,"rows_kept":0,"cut":false,"hidden":false,"merged":[]}

{"sheet":"Gros oeuvre - drainage","index":8,"n_rows":0,"n_cols":0,"rows_kept":0,"cut":false,"hidden":false,"merged":[]}

{"sheet":"Terrassement","index":9,"n_rows":0,"n_cols":0,"rows_kept":0,"cut":false,"hidden":false,"merged":[]}

{"sheet":"Charp - Couverture","index":10,"n_rows":51,"n_cols":7,"rows_kept":51,"cut":false,"hidden":false,"merged":[]}
[]
[]
[]
[]
[]
[]
[]
[null,"Désignation","Unité","PU","Sélection"]
[null,"Dépose de l'ensemble de la couverture et évacuation en déchetterie","m²",null,null,true,{"$f":"IF(F9=TRUE,ROW(),\"\")*1","v":9}]
[null,"Dépose de cheminée y compris évacuation des gravats en déchetterie","u",null,null,true,{"$f":"IF(F10=TRUE,ROW(),\"\")","v":10}]
[null,"Dépose de la zinguerie y compris évacuation","ens",null,null,true,11]
[null,"Fourniture et pose d'une charpente type traditionnelle","ens",null,null,false,""]
[null,"Fourniture et pose d'une charpente type fermette","ens",null,null,true,13]
[null,"Fourniture et pose d'un écran de sous-toiture","m²",null,null,false,""]
[null,"Fourniture et pose d'un lattage et contre-lattage","m²",null,null,false,""]
[null,"Fourniture et pose de tuile terre cuite Immerys PV10 rouge","m²",null,null,false,""]
[null,"Fourniture et pose de tuile panne Bisch brune","m²",null,null,false,""]
[null,"Fourniture et pose de tuile plate en terre cuite","m²",null,null,false,""]
[null,"Fourniture et pose d'une tuile terre cuite de galbe et couleur à définir","m²",null,null,false,""]
[null,"Fourniture et pose de tuiles HP10 ardoisées","m²",null,null,false,""]
[null,"Fourniture et pose de tuile de rive","ml",null,null,false,""]
[null,"Fourniture et pose de tuile faîtière posée à sec sur closoir ventilé","ml",null,null,false,""]
[null,"Fourniture et pose de tuile chatière","u",null,null,false,""]
[null,"Fourniture et pose de tuile à douille","u",null,null,false,""]
[null,"Fourniture et pose de planche de rive","ml",null,null,false,""]
[null,"Fourniture et pose planche bandeau 195 mm","ml",null,null,false,""]
[null,"Fourniture et pose frise bois lasurée","m²",null,null,false,""]
[null,"Fourniture et pose d'une planche d'égout 27/200","m²",null,null,false,""]
[null,"Fourniture et pose bandeau PVC blanc 200 mm","m²",null,null,false,""]
[null,"Fourniture et pose de frise de sous-toiture PVC blanc","m²",null,null,false,""]
[null,"Fourniture et pose frise sous face PVC blanc posée sur chevrons","m²",null,null,false,""]
[null,"Autre désignation",null,null,null,false,""]
[null,"Fourniture et pose goutière zinc","ml",null,null,false,""]
[null,"Fourniture et pose de couloir zinc + couvertine zinc","ml",null,null,false,""]
[null,"Fourniture et pose de couvertine zinc plomb 0,20 pour faîtage","ml",null,null,false,""]
[null,"Fourniture et pose goutière zinc 12/33","ml",null,null,false,""]
[null,"Fourniture et pose de goutière zinc 12/33 posée sur crochets est","ml",null,null,false,""]
[null,"Fourniture et pose de goutière zinc diam 12/33 + accessoires","ml",null,null,false,""]
[null,"Fourniture et pose de goutière zinc carrée prépatinées","ml",null,null,true,39]
[null,"Fourniture et pose d'une descente d'eaux pluviales","ml",null,null,false,""]
[null,"Fourniture et pose descente d'eaux pluviales diam 100 mm","ml",null,null,true,41]
[null,"Fourniture et pose étanchéité murale zinc y compris solin trapco","ml",null,null,false,""]
[null,"Fourniture et pose de noue en zinc dev 0,60","ml",null,null,false,""]
[null,"Fourniture et pose d'une planche d'égout","ml",null,null,true,44]
[null,"Fourniture et pose de Velux 78/98","u",null,null,false,""]
[null,"Fourniture et pose de Velux 114/118 intégra","u",null,null,false,""]
[null,"Fourniture et pose de velux GGL 114x118 acoustique renforcée","u",null,null,false,""]
[null,"Fourniture et pose chapeau Ubbink","u",null,null,false,""]
[null,"Fourniture et pose d'une souche de cheminée zinc plomb","u",null,null,false,""]
[null,"Réfection crépi de cheminée","u",null,null,false,""]
[null,"Habillage zinc des cheminées","u",null,null,false,""]

{"sheet":"Façade","index":11,"n_rows":0,"n_cols":0,"rows_kept":0,"cut":false,"hidden":false,"merged":[]}

{"sheet":"Menuiseries","index":12,"n_rows":0,"n_cols":0,"rows_kept":0,"cut":false,"hidden":false,"merged":[]}

{"sheet":"Isolation combles","index":13,"n_rows":0,"n_cols":0,"rows_kept":0,"cut":false,"hidden":false,"merged":[]}

{"sheet":"Plâtrerie","index":14,"n_rows":0,"n_cols":0,"rows_kept":0,"cut":false,"hidden":false,"merged":[]}

{"sheet":"Electricité","index":15,"n_rows":0,"n_cols":0,"rows_kept":0,"cut":false,"hidden":false,"merged":[]}

{"sheet":"Sanitaire - Chauff","index":16,"n_rows":0,"n_cols":0,"rows_kept":0,"cut":false,"hidden":false,"merged":[]}

{"sheet":"Revêtements","index":17,"n_rows":0,"n_cols":0,"rows_kept":0,"cut":false,"hidden":false,"merged":[]}

{"sheet":"AUX","index":18,"n_rows":3,"n_cols":1,"rows_kept":3,"cut":false,"hidden":false,"merged":[]}
[]
[true]
[false]